Workbook

Sheet KursnaLista
B3: Valuta | C3: Kurs
B4: EUR | C4: 119.369
B5: USD | C5: 100.725
B6: CHF | C6: 102.586
B7: GBP | C7: 133.822
B8: RUB | C8: 1.7215

Sheet Menjacnica
B3: ID | C3: Valuta | D3: Kurs | E3: Količina | F3: Ukupno
B4: 10 | C4: EUR
B5: 20
B6: 30
B7: 40
B8: 50
B9: 60
B11: Koristiti DataValidation da u koloni Valuta mogu biti unete samo vrednosti iz radnog lista KursnaLista, a uz pomoć VLOOKUP-a omogućiti da se nakon izabrane valute u koloni Kurs pojavi koliko iznosi kurs za datu valutu (takođe koristiti rad. list KursnaLista)

Sheet Menjacnica_resenja
B3: ID | C3: Valuta | D3: Kurs | E3: Količina | F3: Ukupno
B4: 10 | C4: EUR | D4: =VLOOKUP(C4,KursnaLista,2,FALSE) -> 119.369 | E4: 3 | F4: =D4*E4 -> 358.107 | H4: IF(ISBLANK(C4);" ";VLOOKUP(C4;KursnaLista;2;FALSE))
B5: 20 | C5: CHF | D5: =VLOOKUP(C5,KursnaLista,2,FALSE) -> 102.586 | E5: 5 | F5: 512.93
B6: 30 | C6: EUR | D6: =VLOOKUP(C6,KursnaLista,2,FALSE) -> 119.369 | E6: 3 | F6: 358.107
B7: 40 | C7: GBP | D7: =VLOOKUP(C7,KursnaLista,2,FALSE) -> 133.822 | E7: 7 | F7: 936.754
B8: 50 | C8: GBP | D8: =VLOOKUP(C8,KursnaLista,2,FALSE) -> 133.822 | E8: 9 | F8: 1204.398
B9: 60 | C9: RUB | D9: =VLOOKUP(C9,KursnaLista,2,FALSE) -> 1.7215 | E9: 56 | F9: 96.404
B11: Koristiti DataValidation da u koloni Valuta mogu biti unete samo vrednosti iz radnog lista KursnaLista, a uz pomoć VLOOKUP-a omogućiti da se nakon izabrane valute u koloni Kurs pojavi koliko iznosi kurs za datu valutu (takođe koristiti rad. list KursnaLista)

Sheet Šifrarnik
B3: Šifra | C3: Naziv | D3: Cena
B4: 1001 | C4: Ćevapi | D4: 300
B5: 1002 | C5: Vešalica | D5: 225
B6: 1003 | C6: Ražnjići | D6: 250
B7: 1004 | C7: Sok 0.25 | D7: 40
B8: 1005 | C8: Pivo 0.33 | D8: 55
B9: 1006 | C9: Pivo 0.5 | D9: 50
B10: 1007 | C10: Vino 0.5 | D10: 100
B11: 1008 | C11: Vino 1l | D11: 300
B12: 1009 | C12: Kolači | D12: 60
B13: 1010 | C13: Palačinke | D13: 52
B14: 1011 | C14: Sladoled | D14: 40
B15: 1012 | C15: Hleb | D15: 15
B16: 1013 | C16: Salata | D16: 25

Sheet Restoran
B3: Br. | C3: Šifra | D3: Količina | E3: Naziv | F3: Jed. cena | G3: Cena | I3: Koristiti DataValidation da u koloni Šifra mogu biti unete samo vrednosti iz radnog lista Šifrarnik, a uz pomoć VLOOKUP-a omogućiti da se nakon izabrane šifre u koloni Naziv i Jed.cena pojavi naziv jela za datu šifru, kao i cena jela (takođe koristiti rad. list Šifrarnik)
B4: 1
B5: 2
B6: 3
B7: 4
B8: 5
B9: 6
B10: 7
B11: 8
B12: 9
B13: 10
B14: 11
B15: 12
B16: 13
F17: Ukupno:

Sheet Restoran_resenja
B3: Br. | C3: Šifra | D3: Količina | E3: Naziv | F3: Jed. cena | G3: Cena | I3: Koristiti DataValidation da u koloni Šifra mogu biti unete samo vrednosti iz radnog lista Šifrarnik, a uz pomoć VLOOKUP-a omogućiti da se nakon izabrane šifre u koloni Naziv i Jed.cena pojavi naziv jela za datu šifru, kao i cena jela (takođe koristiti rad. list Šifrarnik)
B4: 1 | C4: 1003 | D4: 4 | E4: =VLOOKUP(C4,Sifrarnik,2,FALSE) -> Ražnjići | F4: =VLOOKUP(C4,Sifrarnik,3,FALSE) -> 250 | G4: =F4*D4 -> 1000 | I4: IF(ISNUMBER(C4);VLOOKUP(C4;Sifrarnik;2;FALSE);" ") za kolonu Naziv
B5: 2 | C5: 1007 | D5: 7 | E5: =VLOOKUP(C5,Sifrarnik,2,FALSE) -> Vino 0.5 | F5: =VLOOKUP(C5,Sifrarnik,3,FALSE) -> 100 | G5: 700 | I5: IF(ISNUMBER(C4);VLOOKUP(C4;Sifrarnik;3;FALSE);" ") za kolonu Jed.cena
B6: 3 | C6: 1007 | D6: 3 | E6: =VLOOKUP(C6,Sifrarnik,2,FALSE) -> Vino 0.5 | F6: =VLOOKUP(C6,Sifrarnik,3,FALSE) -> 100 | G6: 300
B7: 4 | C7: 1001 | D7: 6 | E7: =VLOOKUP(C7,Sifrarnik,2,FALSE) -> Ćevapi | F7: =VLOOKUP(C7,Sifrarnik,3,FALSE) -> 300 | G7: 1800
B8: 5 | C8: 1013 | D8: 7 | E8: =VLOOKUP(C8,Sifrarnik,2,FALSE) -> Salata | F8: =VLOOKUP(C8,Sifrarnik,3,FALSE) -> 25 | G8: 175
B9: 6 | C9: 1011 | D9: 8 | E9: =VLOOKUP(C9,Sifrarnik,2,FALSE) -> Sladoled | F9: =VLOOKUP(C9,Sifrarnik,3,FALSE) -> 40 | G9: 320
B10: 7 | C10: 1012 | D10: 9 | E10: =VLOOKUP(C10,Sifrarnik,2,FALSE) -> Hleb | F10: =VLOOKUP(C10,Sifrarnik,3,FALSE) -> 15 | G10: 135
B11: 8 | C11: 1010 | D11: 7 | E11: =VLOOKUP(C11,Sifrarnik,2,FALSE) -> Palačinke | F11: =VLOOKUP(C11,Sifrarnik,3,FALSE) -> 52 | G11: 364
B12: 9 | C12: 1004 | D12: 5 | E12: =VLOOKUP(C12,Sifrarnik,2,FALSE) -> Sok 0.25 | F12: =VLOOKUP(C12,Sifrarnik,3,FALSE) -> 40 | G12: 200
B13: 10 | C13: 1006 | D13: 2 | E13: =VLOOKUP(C13,Sifrarnik,2,FALSE) -> Pivo 0.5 | F13: =VLOOKUP(C13,Sifrarnik,3,FALSE) -> 50 | G13: 100
B14: 11 | C14: 1012 | D14: 1 | E14: =VLOOKUP(C14,Sifrarnik,2,FALSE) -> Hleb | F14: =VLOOKUP(C14,Sifrarnik,3,FALSE) -> 15 | G14: 15
B15: 12 | C15: 1002 | D15: 6 | E15: =VLOOKUP(C15,Sifrarnik,2,FALSE) -> Vešalica | F15: =VLOOKUP(C15,Sifrarnik,3,FALSE) -> 225 | G15: 1350
B16: 13 | C16: 1005 | D16: 8 | E16: =VLOOKUP(C16,Sifrarnik,2,FALSE) -> Pivo 0.33 | F16: =VLOOKUP(C16,Sifrarnik,3,FALSE) -> 55 | G16: 440
F17: Ukupno: | G17: =SUM(G4:G16) -> 6899

Sheet Ocena
B2: UIFI | C2: Bodovi | E2: NAPOMENA: Da bi se koristila "Šta-ako" analiza potrebno je da postoji formula.
B3: Zadatak 1 | C3: 15
B4: Zadatak 2 | C4: 15
B5: Zadatak 3 | C5: 17
B6: Seminarski rad | C6: 15
B7: Usmeni ispit | C7: 17 | F7: =C8 -> 79 | G7: 23 | H7: 27 | I7: 31
B8: Ukupno bodova | C8: =SUM(C3:C7) -> 79 | F8: 15 | G8: 85 | H8: 89 | I8: 93
F9: 17 | G9: 87 | H9: 91 | I9: 95
B10: Koliko bi student trebalo da osvoji bodova na usmenom ispitu da bi imao 9 iz predmeta (potreban broj bodova za 9 je 85)? | F10: 19 | G10: 89 | H10: 93 | I10: 97

Sheet Ocene Scenario Summary
B2: Scenario Summary
D3: Current Values: | E3: o22 | F3: o17 | G3: o9
E4: Created by Windows User on 11-10-2020 | F4: Created by Windows User on 11-10-2020 | G4: Created by Windows User on 11-10-2020
B5: Changing Cells:
C6: C$7 | D6: 22 | E6: 22 | F6: 17 | G6: 9
B7: Result Cells:
C8: $C$8 | D8: 84 | E8: 84 | F8: 79 | G8: 71
B9: Notes: Current Values column represents values of changing cells at
B10: time Scenario Summary Report was created. Changing cells for each
B11: scenario are highlighted in gray.

Sheet Planiranje
B3: Budžet za goste | E3: Budžet za goste
B4: Troškovi rezervacije | C4: 23000 | E4: Troškovi rezervacije | F4: 23000
B5: Iznos po osobi | C5: 1000 | E5: Iznos po osobi | F5: 1000
B6: Broj gostiju | C6: 27 | E6: Broj gostiju | F6: 150
B7: Budžet | C7: =C4+C5*C6 -> 50000 | E7: Budžet | F7: =F4+F5*F6 -> 173000
B9: Koliko gostiju može da se opsluži sa budžetom od 50000RSD? | E9: Koliko treba da iznosi budžet za 150 gostiju?
B11: NAPOMENA: Da bi se koristila "Šta-ako" analiza potrebno je da postoji formula. Broj gostiju u drugoj prvoj tabeli treba preko formule izračunati, a budžet uneti ručno

Sheet Izazov
B3: Mesec | C3: Prodaja
B4: Januar | C4: 157274
B5: Februar | C5: 187349
B6: Mart | C6: 179291
B7: April | C7: 202025
B8: Maj | C8: 212685
B9: Jun | C9: 261376
B10: Polugodišnji prosek | C10: =AVERAGE(C4:C9) -> 200000
B13: Koliko treba da iznosi prodaja u junu mesecu da bi polugodišnji prosek bio 200.000 RSD?

Sheet CenaMaterijala
B3: Ukupno para | C3: 1500
B4: Cena materijala po metru | C4: 30
B5: Metara | C5: 15
B6: Ostatak nakon kupovine | C6: =C3-C4*C5 -> 1050
B9: Upravljanje scenarijom - ukoliko cena materijala po metru poraste na 40, 50, 60, 70

Sheet CenaMaterijala Scenario Summary
B2: Scenario Summary
D3: Current Values: | E3: s40 | F3: s50 | G3: s60 | H3: s70
E4: Created by Windows User on 11-10-2020 | F4: Created by Windows User on 11-10-2020 | G4: Created by Windows User on 11-10-2020 | H4: Created by Windows User on 11-10-2020
B5: Changing Cells:
C6: $C$4 | D6: 30 | E6: 40 | F6: 50 | G6: 60 | H6: 70
B7: Result Cells:
C8: $C$6 | D8: 1050 | E8: 900 | F8: 750 | G8: 600 | H8: 450
B9: Notes: Current Values column represents values of changing cells at
B10: time Scenario Summary Report was created. Changing cells for each
B11: scenario are highlighted in gray.

Sheet Prodaja
B3: Prodaja | C3: Cena | D3: 250
C4: Prodato kom. | D4: 300
C5: Prihod | D5: =D3*D4 -> 75000
B6: Proizvodnja | C6: Cena po kom. | D6: 150
C7: Proizvedeno kom. | D7: 400 | F7: =D10 -> 14000 | G7: 300 | H7: 350 | I7: 400 | J7: 450 | K7: 500
C8: Trošak | D8: =D6*D7 -> 60000 | F8: 250 | G8: 14000 | H8: 26500 | I8: 39000 | J8: 51500 | K8: 64000
C9: Fiksan trošak | D9: 1000 | F9: 300 | G9: 29000 | H9: 44000 | I9: 59000 | J9: 74000 | K9: 89000
C10: Profit | D10: =D5-D8-D9 -> 14000 | F10: 350 | G10: 44000 | H10: 61500 | I10: 79000 | J10: 96500 | K10: 114000
F11: 400 | G11: 59000 | H11: 79000 | I11: 99000 | J11: 119000 | K11: 139000
B12: Izračunati nedostajuće vrednosti
B13: Korišćenjem What-if analize - Data Table videti uticaj povećanja broja prodatih kom. (350,400,450,500) na prihod, a zatim i na profit
B14: Videti i uticaj povećanja cene po kom. tokom proizvodnje zajedno sa povećanjem broj prodatih kom. na prihod, a zatim i na profit

Sheet Statistika 1
B3: X | C3: Y
B4: 74.001 | C4: 36.45
B5: 74.003 | C5: 67.9
B6: 74.015 | C6: 38.77
B7: 74 | C7: 42.18
B8: 74.005 | C8: 26.72
B9: 74.002 | C9: 50.77
B10: 74.005 | C10: 39.3
B11: 74.004 | C11: 49.71
B13: Korelacija, grafik sa obe promenljive, kovarijansa, deskriptivna statistika za svaku promenljivu pojedinačno
D16: X | E16: Y | H16: X | I16: Y
C17: X | D17: =VARP('Statistika 1'!$B$4:$B$11) -> 1.8984375e-05 | G17: X | H17: 1
C18: Y | D18: -0.010868125 | E18: =VARP('Statistika 1'!$C$4:$C$11) -> 132.249775 | G18: Y | H18: -0.2168997253 | I18: 1

Sheet Statistika 1 descriptive
A1: X | C1: Y
A3: Mean | B3: 74.004375 | C3: Mean | D3: 43.975
A4: Standard Error | B4: 0.001646831373 | C4: Standard Error | D4: 4.346587742
A5: Median | B5: 74.0035 | C5: Median | D5: 40.74
A6: Mode | B6: 74.005 | C6: Mode
A7: Standard Deviation | B7: 0.004657942526 | C7: Standard Deviation | D7: 12.29400667
A8: Sample Variance | B8: 2.169642857e-05 | C8: Sample Variance | D8: 151.1426
A9: Kurtosis | B9: 4.769585124 | C9: Kurtosis | D9: 1.462681579
A10: Skewness | B10: 2.001095463 | C10: Skewness | D10: 0.8595009731
A11: Range | B11: 0.015 | C11: Range | D11: 41.18
A12: Minimum | B12: 74 | C12: Minimum | D12: 26.72
A13: Maximum | B13: 74.015 | C13: Maximum | D13: 67.9
A14: Sum | B14: 592.035 | C14: Sum | D14: 351.8
A15: Count | B15: 8 | C15: Count | D15: 8
A16: Confidence Level(95.0%) | B16: 0.003894137403 | C16: Confidence Level(95.0%) | D16: 10.27804679

Sheet Statistika 2
A1: 41
B2: A | D2: Deskriptivna statistika
B3: 41 | D3: A
B4: 26
B5: 26 | D5: Mean | E5: 31.25806452
B6: 30 | D6: Standard Error | E6: 1.455407227
B7: 33 | D7: Median | E7: 32
B8: 21 | D8: Mode | E8: 30
B9: 30 | D9: Standard Deviation | E9: 8.103364494
B10: 45 | D10: Sample Variance | E10: 65.66451613
B11: 24 | D11: Kurtosis | E11: -0.6812952977
B12: 30 | D12: Skewness | E12: -0.18399533
B13: 14 | D13: Range | E13: 31
B14: 37 | D14: Minimum | E14: 14
B15: 33 | D15: Maximum | E15: 45
B16: 33 | D16: Sum | E16: 969
B17: 40 | D17: Count | E17: 31
B18: 21 | D18: Confidence Level(95.0%) | E18: 2.972338093
B19: 36
B20: 27
B21: 21
B22: 37
B23: 27
B24: 28
B25: 32
B26: 41
B27: 17
B28: 32
B29: 40
B30: 24
B31: 37
B32: 44
B33: 42
